bitfinex-derivatives/quotes_ETHF0:USTF0_20240922
["timestamp","ask_amount","ask_price","bid_price","bid_amount"]
[1726967250823,0.95932,2617.1,2616.7,0.7434]
[1726967251123,0.95932,2617.1,2616.7,0.93445]
[1726967251317,0.95932,2617.1,2616.7,1.93593371]
[1726967251514,0.95932,2617.1,2616.7,0.93445]
[1726967251714,0.7683,2617.1,2616.7,1.93593371]
[1726967254118,0.7683,2617.1,2616.8,3.39884]
[1726967254323,0.7683,2617.1,2616.8,4.20928371]
[1726967254514,0.7683,2617.1,2616.8,3.2078]
[1726967255022,0.7683,2617.1,2616.8,4.20928371]
[1726967255228,0.95932,2617.1,2616.8,4.20928371]
[1726967256725,0.95932,2617.1,2616.8,1.00148371]
[1726967257222,0.19103,2617.0,2616.7,1.74488371]
[1726967257616,0.95932,2617.1,2616.7,1.74488371]
[1726967258024,0.7683,2617.1,2616.7,1.93593371]
[1726967258221,0.95932,2617.1,2616.7,1.74488371]
[1726967258727,0.7683,2617.1,2616.7,1.74488371]
[1726967260217,0.95932,2617.1,2616.7,1.74488371]
[1726967264041,2.33932,2617.1,2616.7,1.74488371]
[1726967264226,2.33932,2617.1,2616.7,0.7434]
[1726967265635,2.33932,2617.1,2616.7,1.74488371]
[1726967265831,2.33932,2617.1,2616.7,0.7434]
[1726967266426,2.33932,2617.1,2616.7,1.74488371]
[1726967267827,2.33932,2617.1,2616.7,0.7434]
[1726967268028,2.33932,2617.1,2616.7,1.74488371]
[1726967269734,4.5878,2616.8,2616.7,1.00148371]
[1726967270038,0.19106,2616.5,2616.3,1.00148371]
[1726967270224,1.38,2616.4,2616.3,1.00148371]
[1726967270534,1.38,2616.4,2616.1,0.3833]
[1726967270729,1.57108,2616.2,2616.1,0.3833]
[1726967271131,1.7505,2616.2,2616.1,0.3833]
[1726967271633,1.7505,2616.2,2616.0,0.3769]
[1726967272337,1.7505,2616.2,2615.9,3.5911]
[1726967272534,2.1382,2616.2,2615.9,3.5911]
[1726967272732,1.38,2616.0,2615.9,3.5911]
[1726967274939,1.38,2616.0,2615.9,0.3833]
[1726967275829,1.38,2616.0,2615.7,4.102]
[1726967276030,1.38,2616.0,2615.7,0.19112]
[1726967276233,1.38,2616.0,2615.7,0.58792]
[1726967276234,0.4008,2615.9,2615.7,0.58792]
[1726967276638,0.4008,2615.9,2615.7,0.3968]
[1726967278831,1.38,2615.8,2615.7,0.3968]
[1726967279032,0.19113,2615.6,2615.5,0.7652]
[1726967279233,0.19113,2615.6,2614.9,9.81350928]
[1726967279234,4.032,2615.6,2614.9,9.81350928]
[1726967279438,0.3832,2615.5,2615.1,0.7995]
[1726967279630,0.3832,2615.5,2615.1,0.401]
[1726967279832,0.19115,2615.4,2615.1,0.401]
[1726967280131,2.98,2615.2,2614.9,3.2078]
[1726967280333,2.98,2615.2,2614.4,1.00148371]
[1726967280334,0.1912,2614.6,2614.4,1.00148371]
[1726967280529,3.1712,2614.6,2614.1,3.2078]
[1726967280847,2.98,2614.4,2614.2,0.401]
[1726967282142,0.752,2614.5,2614.2,0.401]
[1726967282339,5.632,2614.6,2614.2,0.401]
[1726967283737,5.632,2614.6,2614.3,3.2078]
[1726967283738,2.652,2614.6,2614.3,3.2078]
[1726967283932,2.652,2614.7,2614.3,3.39902]
[1726967284127,2.652,2614.8,2614.5,0.19121]
[1726967284331,2.652,2614.8,2614.6,3.6039]
[1726967284534,0.3917,2614.9,2614.6,0.3961]
[1726967284747,0.3917,2614.9,2614.7,0.4]
[1726967285129,0.58288,2614.9,2614.7,0.4]
[1726967285941,0.3917,2614.9,2614.7,0.4]
[1726967286140,2.652,2615.0,2614.7,0.4]
[1726967286534,2.652,2615.1,2614.7,0.59119]
[1726967286743,1.1508246,2615.2,2614.7,0.59119]
[1726967287041,2.652,2615.1,2614.7,0.59119]
[1726967287941,2.84316,2615.1,2614.7,0.59119]
[1726967288638,2.652,2615.1,2614.7,0.59119]
[1726967289240,2.84316,2615.1,2614.7,0.59119]
[1726967291145,2.652,2615.1,2614.7,0.59119]
[1726967292135,0.7719,2615.2,2614.9,0.19117]
[1726967292338,3.0469,2615.2,2614.8,3.2078]
[1726967292540,3.0469,2615.2,2615.0,0.19117]
[1726967292743,3.0469,2615.2,2615.1,0.3991]
[1726967292941,0.3939,2615.2,2615.1,0.3991]
[1726967294248,0.19114,2615.4,2615.1,0.3991]
[1726967294542,2.653,2615.3,2615.2,0.3736]
[1726967295450,0.19114,2615.4,2615.2,0.3736]
[1726967295745,2.84414,2615.4,2615.2,0.3736]
[1726967296943,2.653,2615.4,2615.2,0.3736]
[1726967297237,3.0239,2615.5,2615.3,0.19115]
[1726967297443,3.0239,2615.5,2615.2,0.96665]
[1726967299151,0.3709,2615.5,2615.2,0.7755]
[1726967299343,0.3709,2615.5,2615.2,0.96665]
[1726967299642,0.3709,2615.5,2615.3,0.19115]
[1726967302136,2.98,2615.7,2615.4,0.19114]
[1726967302338,5.81912,2615.7,2615.4,0.19114]
[1726967302543,5.81912,2615.7,2615.3,0.19115]
[1726967304052,5.81912,2615.7,2615.3,3.39895]
[1726967304348,5.81912,2615.7,2615.4,0.19114]
[1726967304747,5.81912,2615.7,2615.3,3.39895]
[1726967307946,5.81912,2615.7,2615.4,0.19114]
[1726967308140,5.81912,2615.7,2615.3,3.39895]
[1726967309046,5.81912,2615.7,2615.2,0.19115]
[1726967309047,2.98,2615.5,2615.2,0.19115]
[1726967309255,3.17115,2615.3,2614.9,0.19117]
[1726967309450,0.3873,2615.2,2614.8,0.7362]
[1726967309645,2.98,2615.0,2614.8,0.3649]
[1726967310155,0.3684,2614.9,2614.8,0.3649]
[1726967312651,0.3684,2614.9,2614.7,3.2078]
[1726967312952,2.98,2614.8,2614.7,3.2078]
[1726967313160,3.3566,2614.8,2614.7,3.2078]
[1726967314556,0.19121,2614.5,2614.3,0.3871]
[1726967314866,0.3937,2614.4,2614.3,0.3871]
[1726967315456,0.19202301,2615.3,2614.3,10.2119]
[1726967315663,9.06932044,2615.6,2614.5,3.2078]
[1726967315664,0.7474,2615.1,2614.5,3.2078]
[1726967315859,0.7474,2615.1,2614.9,0.19118]
[1726967316055,2.648,2615.3,2614.9,0.19117]
[1726967316268,2.648,2615.3,2615.0,0.3871]
[1726967316561,2.648,2615.3,2615.1,0.3964]
[1726967323162,0.3653,2615.4,2615.1,0.3964]
[1726967323372,0.3821,2615.5,2615.1,3.9741]
[1726967323861,2.648,2615.6,2615.2,0.19115]
[1726967324658,2.648,2615.6,2615.1,3.9741]
[1726967324659,2.83913,2615.6,2615.1,4.16526]
[1726967325054,2.648,2615.6,2615.1,4.16526]
[1726967325465,2.648,2615.6,2615.2,0.19116]
[1726967325850,2.83912,2615.7,2615.2,0.19116]
[1726967326262,2.648,2615.7,2615.2,0.19116]
[1726967326469,2.648,2615.7,2615.1,3.9741]
[1726967327159,2.648,2615.7,2615.2,0.19115]
[1726967329967,2.83912,2615.7,2615.2,0.19115]
[1726967330674,3.72561038,2615.8,2615.4,3.2078]
[1726967330969,0.398,2615.9,2615.6,0.19113]
[1726967331167,0.398,2615.9,2615.7,0.7954]
[1726967332063,0.58911,2615.9,2615.7,0.4022]
[1726967332368,0.58911,2615.9,2615.5,3.6024]
[1726967332369,0.19111,2615.8,2615.5,3.6024]
[1726967332874,0.19112,2615.7,2615.5,3.2078]
[1726967333177,0.55863,2615.6,2615.5,3.2078]
[1726967333361,0.95643,2615.6,2615.5,3.2078]
[1726967335667,0.7653,2615.6,2615.5,3.2078]
[1726967336275,0.95643,2615.6,2615.5,3.2078]
[1726967336771,0.7653,2615.6,2615.5,3.2078]
[1726967337174,0.3978,2615.6,2615.5,3.2078]
[1726967338569,0.98471,2615.9,2615.5,3.2078]
[1726967338767,3.8164,2615.9,2615.6,1.1426]
[1726967339171,3.8164,2615.9,2615.6,1.33373]
[1726967339172,3.4208,2615.9,2615.6,1.33373]
[1726967339366,3.4208,2615.9,2615.6,1.1426]
[1726967340579,0.96891,2615.9,2615.6,1.1426]
[1726967341280,0.7778,2615.9,2615.6,1.1426]
[1726967341474,0.96891,2615.9,2615.6,1.1426]
[1726967341676,0.96891,2615.9,2615.5,3.2078]
[1726967342780,0.96891,2615.9,2615.5,3.39893]
[1726967343588,0.7778,2615.9,2615.5,3.39893]
[1726967344688,0.7778,2615.9,2615.5,3.2078]
[1726967344982,0.3798,2615.9,2615.6,0.3685]
[1726967345181,2.643,2616.0,2615.8,0.19111]
[1726967347300,0.3785,2616.1,2615.8,3.39891]
[1726967347799,3.36181038,2616.1,2615.8,3.39891]
[1726967347997,3.55290038,2616.1,2615.7,0.97822]
[1726967348200,3.55290038,2616.1,2615.8,0.19111]
[1726967348593,3.55290038,2616.1,2615.8,3.39891]
[1726967348898,3.55290038,2616.1,2615.8,3.2078]
[1726967350191,3.36181038,2616.1,2615.8,3.2078]
[1726967350704,0.3785,2616.1,2615.8,3.2078]
[1726967351188,0.3785,2616.1,2615.9,0.1911]
[1726967351387,0.3785,2616.1,2615.8,3.39891]
[1726967352585,0.3785,2616.1,2615.8,3.2078]
[1726967352896,0.3785,2616.1,2615.8,3.39891]
[1726967353907,0.3785,2616.1,2615.8,3.2078]
[1726967354296,0.3785,2616.1,2615.8,3.39891]
[1726967360304,0.3785,2616.1,2615.9,0.19111]
[1726967360495,0.56959,2616.1,2615.8,3.2078]
[1726967361701,0.3785,2616.1,2615.8,3.2078]
[1726967362404,0.3785,2616.1,2615.8,3.39891]
[1726967365298,6.58230038,2616.2,2615.8,3.2078]
[1726967365299,3.35761038,2616.2,2615.8,3.2078]
[1726967365503,2.98331038,2616.3,2616.2,0.19108]
[1726967365706,2.98331038,2616.6,2616.1,4.5878]
[1726967365899,2.98331038,2616.7,2616.4,4.5878]
[1726967366203,3.17435038,2616.8,2616.4,4.77887]
[1726967366412,2.98331038,2616.8,2616.4,3.2078]
[1726967366597,0.19106,2616.6,2616.2,1.31928]
[1726967367000,0.19106,2616.6,2616.3,0.19108]
[1726967367509,0.19105,2616.7,2616.3,1.57108]
[1726967367802,3.75881038,2616.9,2616.4,4.5878]
[1726967367994,3.75881038,2616.9,2616.6,0.19105]
[1726967368198,0.3737,2616.9,2616.7,0.7929]
[1726967368395,0.56473,2616.9,2616.7,1.1789]
[1726967369611,0.56473,2616.9,2616.7,0.386]
[1726967370102,0.56473,2616.9,2616.3,0.19107]
[1726967370315,6.33701038,2616.9,2616.5,0.3806]
[1726967370499,0.19104,2616.8,2616.5,0.3806]
[1726967372613,0.3737,2616.9,2616.5,0.3806]
[1726967372801,0.3737,2616.9,2616.6,0.55395]
[1726967373007,0.3737,2616.9,2616.7,0.3837]
[1726967376212,0.3737,2616.9,2616.7,0.57475]
[1726967376404,3.2078,2617.3,2616.7,0.57475]
[1726967376405,3.2078,2617.3,2616.8,6.1878]
[1726967376714,3.2243,2617.4,2616.9,0.19103]
[1726967376919,3.2243,2617.4,2617.0,0.7632]
[1726967377108,0.3953,2617.4,2617.1,0.3765]
[1726967377305,0.5863,2617.4,2617.1,0.3765]
[1726967377816,0.3953,2617.4,2617.1,3.5843]
[1726967380712,0.5863,2617.4,2617.1,3.5843]
[1726967380919,0.3953,2617.4,2617.1,3.5843]
[1726967395631,0.5863,2617.4,2617.1,3.5843]
[1726967396123,0.3953,2617.4,2617.1,3.5843]
[1726967396323,0.5863,2617.4,2617.1,3.5843]
[1726967396922,0.3953,2617.4,2617.1,3.77531]
[1726967397125,0.3953,2617.4,2617.2,0.19101]
[1726967397326,2.82799,2617.5,2617.1,5.15531]
[1726967397526,0.19099,2617.5,2617.1,5.15531]
[1726967397831,2.82399,2617.5,2617.1,5.15531]
[1726967398430,2.82399,2617.5,2617.1,4.9643]
[1726967398431,0.191,2617.4,2617.1,4.9643]
[1726967400630,1.38,2617.2,2617.0,0.7632]
[1726967400928,4.2092,2617.4,2617.0,3.971]
[1726967400929,0.3884,2617.4,2617.0,3.971]
[1726967401222,0.3884,2617.4,2617.0,5.351]
[1726967401427,0.5794,2617.4,2617.0,5.54202]
[1726967403326,0.3884,2617.4,2617.0,5.54202]
[1726967403930,0.5794,2617.4,2617.0,5.54202]
[1726967404125,0.3884,2617.4,2617.0,5.351]
[1726967404328,7.10631038,2618.2,2617.3,4.5878]
[1726967404329,9.56,2617.9,2617.3,4.5878]
[1726967404521,0.39,2618.0,2617.7,1.57097]
[1726967404722,0.19096,2617.9,2617.8,0.7835]
[1726967405027,0.19096,2617.9,2617.8,0.3788]
[1726967405227,4.40436,2617.9,2617.8,0.3788]
[1726967405618,4.2134,2617.9,2617.8,0.3788]
[1726967406230,10.2134,2617.9,2617.2,7.3098]
[1726967406424,4.5878,2617.7,2617.2,7.3098]
[1726967406629,0.19099,2617.5,2617.2,7.3098]
[1726967407018,2.4942246,2617.3,2617.2,7.3098]
[1726967407322,0.4024,2617.4,2617.2,3.2078]
[1726967407323,2.8966246,2617.4,2617.2,3.2078]
[1726967408121,0.4024,2617.4,2617.2,3.2078]
[1726967411528,2.8966246,2617.4,2617.2,3.2078]
[1726967412731,3.2635246,2617.4,2617.2,3.2078]
[1726967413627,0.3911,2617.6,2617.3,3.8208]
[1726967413628,2.4942246,2617.6,2617.3,3.8208]
[1726967413830,2.4942246,2617.7,2617.6,0.19098]
[1726967414031,2.4942246,2617.7,2617.5,3.39879]
[1726967414223,2.4942246,2617.8,2617.5,3.39879]
[1726967414427,2.4942246,2617.8,2617.5,3.2078]
[1726967414622,2.4942246,2617.8,2617.5,3.39878]
[1726967416137,2.4942246,2617.7,2617.5,3.39878]
[1726967416336,2.4942246,2617.7,2617.6,1.38]
[1726967417533,3.17427038,2617.9,2617.6,1.38]
[1726967417836,0.19097,2617.8,2617.5,3.2078]
[1726967418033,2.49671368,2617.6,2617.5,3.2078]
[1726967418424,3.17428038,2617.8,2617.5,3.2078]
[1726967419037,6.11252878,2618.0,2617.5,3.39879]
[1726967419038,2.49766838,2617.6,2617.5,3.39879]
[1726967420836,2.49766838,2617.6,2617.5,7.21879]
[1726967421930,2.49766838,2617.6,2617.5,3.39879]
[1726967422636,2.49763697,2617.6,2617.5,3.39879]
[1726967423139,0.19096,2617.9,2617.5,3.39879]
[1726967423736,5.32059697,2618.0,2617.6,0.19098]
[1726967423936,2.49763697,2618.0,2617.7,0.19097]
[1726967424237,6.06498697,2618.1,2617.8,2.1539]
[1726967424440,3.96635,2618.1,2617.8,2.5374]
[1726967424733,0.19095,2618.0,2617.8,2.5374]
[1726967425335,0.19095,2618.0,2617.8,1.1574]
[1726967426628,6.46398697,2618.1,2617.8,1.1574]
[1726967427435,0.19095,2618.0,2617.8,4.3652]
[1726967427638,3.83598697,2618.1,2617.8,4.3652]
[1726967427942,1.1474,2618.1,2617.8,4.3652]
[1726967428135,1.1474,2618.1,2617.8,4.55616]
[1726967429636,1.33834,2618.1,2617.8,4.3652]
[1726967430649,1.1474,2618.1,2617.8,4.3652]
[1726967431242,1.1474,2618.1,2617.8,4.55617]
[1726967431742,1.1474,2618.1,2617.8,4.3652]
[1726967432243,3.64503697,2618.1,2617.8,3.5913]
[1726967432539,2.49763697,2618.0,2617.8,3.5913]
[1726967432739,0.19096,2617.9,2617.8,0.3835]
[1726967432943,4.01096,2617.9,2617.8,0.3835]
[1726967433244,0.19098,2617.7,2617.4,3.2078]
[1726967433444,0.4007,2617.6,2617.4,3.5957]
[1726967433639,0.7816,2617.6,2617.4,3.5957]
[1726967436242,0.97258,2617.6,2617.4,3.5957]
[1726967436438,0.7816,2617.6,2617.4,3.5957]
[1726967437038,0.7816,2617.6,2617.2,0.19101]
[1726967438133,3.2078,2617.4,2617.0,5.09828586]
[1726967438333,2.98331038,2617.5,2617.2,0.19101]
[1726967438533,3.35861038,2617.5,2617.1,0.19101]
[1726967438743,2.4964136,2617.2,2617.1,0.19101]
[1726967440039,2.4964136,2617.2,2617.1,0.97051]
[1726967440239,2.4964136,2617.2,2617.1,1.36581]
[1726967441749,3.54960038,2617.5,2617.1,1.36581]
[1726967442138,3.17431038,2617.4,2617.0,5.09828586]
[1726967442339,2.4967416,2617.1,2617.0,5.28930586]
[1726967442542,2.98331038,2617.3,2617.0,5.28930586]
[1726967442746,2.98331038,2617.3,2617.1,0.386]
[1726967443648,3.17431038,2617.4,2617.1,0.386]
[1726967444040,2.98331038,2617.4,2617.1,0.386]
[1726967444549,2.98331038,2617.4,2617.1,0.7812]
[1726967445345,3.17431038,2617.4,2617.1,0.7812]
[1726967445747,2.98331038,2617.4,2617.1,0.7812]
[1726967446553,0.56629,2617.5,2617.1,0.7812]
[1726967447644,0.3809,2617.6,2617.4,2.98]
[1726967447845,0.7583,2617.8,2617.5,0.3824]
[1726967448049,0.3859,2617.6,2617.3,1.38]
[1726967449155,0.3859,2617.6,2617.3,1.571]
[1726967452459,0.3859,2617.6,2617.2,0.3824]
[1726967452460,0.19099,2617.5,2617.2,0.3824]
[1726967452653,0.7585,2617.4,2617.2,0.3824]
[1726967453351,2.49740925,2617.3,2617.2,0.3824]
[1726967453547,2.49740925,2617.3,2617.1,0.58621]
[1726967453753,2.86680925,2617.2,2617.1,1.57101]
[1726967453955,2.86680925,2617.2,2617.1,1.95691]
[1726967454251,2.86680925,2617.2,2617.1,2.33081]
[1726967455357,2.86680925,2617.2,2617.1,2.1398]
[1726967456053,0.3694,2617.2,2617.1,2.1398]
[1726967456555,2.86897345,2617.2,2617.1,2.1398]
[1726967457150,0.3694,2617.2,2617.1,2.1398]
[1726967458649,2.86906493,2617.2,2617.1,2.1398]
[1726967459260,0.3694,2617.2,2617.1,2.1398]
[1726967462861,0.3694,2617.2,2617.1,1.38]
[1726967463371,0.3694,2617.2,2617.0,3.2078]
[1726967463564,0.3694,2617.2,2617.0,3.5968]
[1726967466263,1.7494,2617.2,2616.8,1.00148371]
[1726967466469,1.38,2616.9,2616.5,4.102]
[1726967466658,1.38,2616.9,2616.2,2.0023824]
[1726967466659,1.38,2616.7,2616.2,1.76998371]
[1726967466860,3.39886,2616.5,2616.2,0.3832]
[1726967467062,1.38,2616.5,2615.9,5.48878371]
[1726967467370,0.19109,2616.2,2615.8,1.38]
[1726967467583,0.19109,2616.2,2615.7,0.777]
[1726967467584,1.7597,2616.1,2615.7,0.777]
[1726967468065,1.7597,2616.1,2615.6,1.7653]
[1726967468066,0.3797,2616.1,2615.6,0.3853]
[1726967468457,0.57079,2616.1,2615.6,0.3853]
[1726967468661,0.3797,2616.1,2615.6,0.3853]
[1726967469362,0.5708,2616.1,2615.5,3.5733]
[1726967470170,0.3797,2616.1,2615.5,3.76443]
[1726967470667,0.3797,2616.1,2615.6,0.19113]
[1726967470880,0.3797,2616.1,2615.5,3.76443]
[1726967471057,0.3797,2616.1,2615.7,2.98]
[1726967471262,0.19108,2616.3,2615.8,0.3884]
[1726967471564,3.2078,2616.2,2615.8,0.3884]
[1726967471765,0.96188,2616.3,2615.8,0.3884]
[1726967472062,3.2078,2616.2,2615.8,0.3884]
[1726967472268,3.2078,2616.2,2615.7,2.98]
[1726967472464,3.2078,2616.2,2615.6,0.19112]
[1726967472666,3.2078,2616.2,2615.5,3.76443]
[1726967472966,0.19109,2616.1,2615.5,3.76443]
[1726967473169,3.2078,2616.2,2615.5,3.76443]
[1726967473374,0.19109,2616.2,2615.6,0.19113]
[1726967473667,0.19109,2616.2,2615.5,3.76443]
[1726967473668,0.19109,2616.1,2615.5,3.76443]
[1726967474366,0.1911,2616.0,2615.5,3.76443]
[1726967474866,3.2078,2616.2,2615.7,2.98]
[1726967475175,2.625,2616.1,2615.7,2.98]
[1726967475370,2.81609,2616.1,2615.7,2.98]
[1726967475967,0.1911,2616.0,2615.7,2.98]
[1726967476166,0.1911,2616.0,2615.5,3.76443]
[1726967476469,6.1878,2615.9,2615.3,0.3664]
[1726967476669,0.19113,2615.6,2615.3,0.3664]
[1726967476869,0.19113,2615.5,2615.2,0.3816]
[1726967477071,3.39893,2615.6,2615.2,0.3816]
[1726967477472,5.8328,2615.6,2615.2,0.3816]
[1726967477670,6.02393,2615.6,2615.2,0.3816]
[1726967477875,5.8328,2615.6,2615.2,0.3816]
[1726967478380,6.02393,2615.6,2615.2,0.3816]
[1726967480573,6.02393,2615.6,2615.0,0.3779]
[1726967480574,5.8328,2615.6,2615.0,0.3779]
[1726967480880,0.19114,2615.5,2615.0,0.3779]
[1726967481377,0.3789,2615.4,2615.0,0.3779]
[1726967481582,0.3903,2615.3,2615.0,0.3779]
[1726967481883,0.3903,2615.3,2615.1,0.19116]
[1726967482268,0.3789,2615.4,2615.1,0.19116]
[1726967482667,3.2078,2615.6,2615.3,0.19114]
[1726967482870,3.19832,2615.8,2615.1,2.98]
[1726967482871,0.94152,2615.7,2615.2,0.19115]
[1726967483477,0.94152,2615.7,2615.1,3.17116]
[1726967483680,0.19114,2615.5,2615.1,2.98]
[1726967484486,0.19114,2615.5,2615.1,3.17116]
[1726967485584,0.19113,2615.5,2615.0,0.56907]
[1726967486088,3.39893,2615.6,2615.1,0.19116]
[1726967486477,6.01993,2615.6,2615.2,0.3798]
[1726967486677,5.8288,2615.6,2615.0,0.3779]
[1726967486978,5.8288,2615.6,2615.0,0.7577]
[1726967487184,0.19115,2615.4,2615.0,0.7577]
[1726967487381,6.02165569,2615.6,2614.7,0.19119]
[1726967487382,0.19116,2615.2,2614.7,0.19119]
[1726967487581,0.7717,2615.1,2614.8,0.19118]
[1726967488782,0.7717,2615.1,2614.9,0.19118]
[1726967489183,3.40065569,2615.6,2614.9,2.98]
[1726967489485,3.40065569,2615.6,2615.1,0.19116]
[1726967489486,2.621,2615.5,2615.1,0.19116]
[1726967490080,2.621,2615.5,2615.0,1.32177]
[1726967490381,2.621,2615.5,2615.1,0.19116]
[1726967490580,2.81213,2615.5,2615.1,0.19116]
[1726967491488,4.16775569,2615.6,2615.0,1.1306]
[1726967491683,4.16775569,2615.6,2615.3,0.19115]
[1726967491880,0.19114,2615.5,2615.1,0.19116]
[1726967492479,6.78703,2615.6,2615.2,0.19115]
[1726967492680,3.57923,2615.6,2615.2,0.19115]
[1726967493076,0.19113,2615.5,2615.0,1.1306]
[1726967493787,3.57923,2615.6,2615.2,0.19116]
[1726967494679,6.5959,2615.6,2615.0,0.7471]
[1726967494879,0.19115,2615.4,2615.0,0.19117]
[1726967495290,0.19115,2615.3,2615.0,0.19117]
[1726967495688,0.3958,2615.2,2615.0,0.19117]
[1726967496077,0.3958,2615.2,2614.9,3.3764]
[1726967496278,0.3958,2615.2,2614.9,0.58757]
[1726967499490,0.3958,2615.2,2615.0,0.19117]
[1726967499695,3.2078,2615.5,2614.9,3.3764]
[1726967499696,5.8288,2615.5,2614.9,3.3764]
[1726967499900,3.5854,2615.5,2614.9,3.3764]
[1726967500386,3.5854,2615.5,2615.2,0.19115]
[1726967500782,3.77654,2615.5,2615.1,0.19116]
[1726967501885,2.621,2615.9,2615.4,3.2078]
[1726967502091,2.621,2615.9,2615.6,0.19112]
[1726967502092,0.7668,2615.8,2615.6,0.19112]
[1726967503390,0.7668,2615.8,2615.5,0.95243]
[1726967503792,0.7668,2615.8,2615.6,0.19113]
[1726967505294,0.7668,2615.8,2615.5,0.95243]
[1726967506293,0.7668,2615.8,2615.6,0.19113]
[1726967507994,0.7668,2615.8,2615.4,3.2078]
[1726967508297,0.7668,2615.8,2615.2,1.34585]
[1726967508599,3.2078,2615.7,2615.2,0.3893]
[1726967508797,0.19113,2615.5,2615.1,0.19116]
[1726967509194,0.365,2615.4,2615.1,0.19116]
[1726967509394,0.3971,2615.3,2615.1,0.19116]
[1726967511801,0.3971,2615.3,2615.0,4.8804]
[1726967512003,0.3971,2615.3,2615.1,0.19116]
[1726967512902,0.3971,2615.3,2615.2,0.19116]
[1726967513095,0.3971,2615.3,2615.0,1.77988371]
[1726967513300,0.3971,2615.3,2615.2,0.19116]
[1726967513597,0.3971,2615.3,2615.1,0.19116]
[1726967515307,0.365,2615.4,2615.3,0.19115]
[1726967515501,0.365,2615.4,2615.2,0.56665]
[1726967516896,2.49966717,2616.0,2615.3,7.80548371]
[1726967517194,0.3923,2616.0,2615.7,0.19112]
[1726967517402,0.3923,2616.0,2615.8,0.3866]
[1726967517792,0.3923,2616.0,2615.9,0.19111]
[1726967517992,0.399,2616.1,2615.9,0.1911]
[1726967518599,0.399,2616.1,2616.0,0.1911]
[1726967519603,0.399,2616.1,2615.9,0.1911]
[1726967520997,0.399,2616.1,2616.0,0.1911]
[1726967521696,0.399,2616.1,2615.9,0.1911]
[1726967521992,0.399,2616.1,2615.8,0.19111]
[1726967522193,0.59009,2616.1,2615.7,0.55462]
[1726967522503,0.399,2616.1,2615.6,4.20928371]
[1726967522708,0.59009,2616.1,2615.7,0.19112]
[1726967524197,0.399,2616.1,2615.8,0.19111]
[1726967525205,0.399,2616.1,2615.7,0.19112]
[1726967526692,0.59009,2616.1,2615.7,0.19112]
[1726967526997,0.59009,2616.1,2615.8,0.19111]
[1726967526998,0.399,2616.1,2615.8,0.19111]
[1726967527904,2.89866717,2616.1,2615.8,0.19111]
[1726967530709,0.399,2616.1,2615.8,0.19111]
[1726967531391,2.89866717,2616.1,2615.8,0.19111]
[1726967531591,2.89866717,2616.1,2616.0,0.1911]
[1726967531898,1.95666717,2616.4,2616.3,0.66878]
[1726967532098,0.3783,2617.1,2616.3,9.2825]
[1726967532406,6.68832878,2617.4,2617.3,0.191]
[1726967532407,3.2078,2617.4,2617.3,0.191]
[1726967532899,3.2078,2617.4,2617.2,0.19101]
[1726967533897,3.2078,2617.4,2617.0,2.98]
[1726967533898,3.2078,2617.4,2617.1,0.19101]
[1726967534093,0.56928,2617.6,2617.1,0.19101]
[1726967534397,0.3783,2617.6,2617.2,0.19101]
[1726967534901,0.3783,2617.6,2617.3,0.191]
[1726967536002,0.3783,2617.6,2617.1,3.2078]
[1726967536199,0.3783,2617.6,2617.2,0.19101]
[1726967536503,2.80693,2618.3,2617.5,2.98]
[1726967536709,0.3889,2618.1,2617.8,0.19096]
[1726967536899,0.3889,2618.1,2617.7,3.2078]
[1726967537099,0.3889,2618.1,2617.6,0.7667]
[1726967537100,0.3889,2618.1,2617.8,0.19096]
[1726967539204,0.3889,2618.1,2617.7,3.39877]
[1726967540707,0.3889,2618.1,2617.7,6.1878]
[1726967541007,0.3639,2618.3,2617.9,2.98]
[1726967541312,0.3639,2618.3,2618.1,0.19094]
[1726967542201,0.3639,2618.3,2618.0,3.39875]
[1726967542406,0.3639,2618.3,2618.1,0.19094]
[1726967544908,0.3639,2618.3,2618.0,3.39875]
[1726967545208,0.3639,2618.3,2618.1,0.19094]
[1726967546815,0.3786,2618.4,2618.1,0.19094]
[1726967548403,0.3786,2618.4,2618.0,3.2078]
[1726967548404,0.56953,2618.4,2618.0,3.2078]
[1726967548910,0.56953,2618.4,2618.0,0.19095]
[1726967550118,0.56953,2618.4,2617.9,0.19096]
[1726967550618,3.2078,2618.2,2617.3,3.5756]
[1726967550916,3.2078,2618.2,2617.5,0.19099]
[1726967550917,0.98315,2618.1,2617.5,0.19099]
[1726967551215,0.98315,2618.1,2617.5,0.19098]
[1726967551417,0.19095,2618.0,2617.5,0.19098]
[1726967551617,0.3863,2617.9,2617.6,0.19098]
[1726967555909,0.3863,2617.9,2617.6,3.39878]
[1726967556316,0.3863,2617.9,2617.6,0.19098]
[1726967561917,0.3863,2617.9,2617.3,3.9879]
[1726967561918,0.19097,2617.8,2617.3,3.9879]
[1726967562110,0.58698,2617.7,2617.3,3.2078]
[1726967562312,0.3689,2617.6,2617.3,3.3988]
[1726967562507,0.3689,2617.6,2617.3,3.2078]
[1726967563614,0.55988,2617.6,2617.3,3.2078]
[1726967563814,0.3689,2617.6,2617.3,3.2078]
[1726967566115,0.3689,2617.6,2617.2,3.17101]
[1726967566515,0.3689,2617.6,2617.2,6.37881]
[1726967567421,0.3689,2617.6,2617.2,6.1878]
[1726967568227,0.3689,2617.6,2617.2,2.98]